fUST/lending_fUST_20250804
["ID","MTS","AMOUNT","RATE_DAILY","PERIOD"]
[377158056,1754262652710,-454.38199827,0.00049863,120]
[377158057,1754262652720,-460.0,0.00049863,120]
[377158058,1754262652729,-460.0,0.00049863,120]
[377158059,1754262652738,-460.0,0.00049863,120]
[377158060,1754262652748,-460.0,0.00049863,120]
[377158061,1754262652757,-917.11,0.00049863,120]
[377158062,1754262652767,-460.0,0.00049863,120]
[377158063,1754262652776,-449.69089326,0.00049863,120]
[377158064,1754262652785,-460.0,0.00049863,120]
[377158065,1754262652795,-460.0,0.00049863,120]
[377158066,1754262652804,-460.0,0.00049863,120]
[377158067,1754262652814,-460.0,0.00049863,120]
[377158068,1754262652823,-460.0,0.00049863,120]
[377158069,1754262652832,-460.0,0.00049863,120]
[377158070,1754262652842,-461.27764333,0.00049863,120]
[377158071,1754262652851,-460.0,0.00049863,120]
[377158072,1754262652860,-460.0,0.00049863,120]
[377158073,1754262652870,-460.0,0.00049863,120]
[377158074,1754262652880,-617.82,0.00049863,120]
[377158075,1754262652890,-529.64,0.00049863,120]
[377158076,1754262652900,-460.0,0.00049863,120]
[377158077,1754262652910,-460.7798428,0.00049863,120]
[377158078,1754262652919,-460.0,0.00049863,120]
[377158079,1754262652929,-460.0,0.00049863,120]
[377158080,1754262652939,-460.0,0.00049863,120]
[377158081,1754262652949,-460.0,0.00049863,120]
[377158082,1754262652959,-460.0,0.00049863,120]
[377158083,1754262652968,-2429.25,0.00049863,120]
[377158084,1754262652978,-460.0,0.00049863,120]
[377158085,1754262652988,-460.0,0.00049863,120]
[377158086,1754262652997,-460.0,0.00049863,120]
[377158087,1754262653006,-638.56,0.00049863,120]
[377158088,1754262653016,-460.0,0.00049863,120]
[377158089,1754262653026,-460.0,0.00049863,120]
[377158090,1754262653035,-460.0,0.00049863,120]
[377158091,1754262653045,-460.0,0.00049863,120]
[377158092,1754262653054,-614.58,0.00049863,120]
[377158093,1754262653064,-605.96,0.00049863,120]
[377158094,1754262653074,-460.0,0.00049863,120]
[377158095,1754262653083,-460.0,0.00049863,120]
[377158096,1754262653093,-447.49687021,0.00049863,120]
[377158097,1754262653103,-515.39,0.00049863,120]
[377158098,1754262653112,-511.64,0.00049863,120]
[377158099,1754262653122,-460.0,0.00049863,120]
[377158100,1754262653131,-2536.87,0.00049863,120]
[377158101,1754262653141,-572.77,0.00049863,120]
[377158102,1754262653150,-460.0,0.00049863,120]
[377158103,1754262653159,-703.39,0.00049863,120]
[377158104,1754262653168,-460.0,0.00049863,120]
[377158105,1754262653178,-460.0,0.00049863,120]
[377158106,1754262653187,-460.0,0.00049863,120]
[377158107,1754262653197,-629.7,0.00049863,120]
[377158108,1754262653207,-460.0,0.00049863,120]
[377158109,1754262653217,-460.0,0.00049863,120]
[377158110,1754262653226,-557.62,0.00049863,120]
[377158111,1754262653236,-461.69748636,0.00049863,120]
[377158112,1754262653247,-460.0,0.00049863,120]
[377158113,1754262653257,-460.0,0.00049863,120]
[377158114,1754262653266,-460.0,0.00049863,120]
[377158115,1754262653275,-1338.79,0.00049863,120]
[377158116,1754262653285,-460.0,0.00049863,120]
[377158117,1754262653295,-460.0,0.00049863,120]
[377158118,1754262653305,-606.26,0.00049863,120]
[377158119,1754262653314,-460.0,0.00049863,120]
[377158120,1754262653324,-460.0,0.00049863,120]
[377158121,1754262653333,-460.0,0.00049863,120]
[377158122,1754262653342,-460.0,0.00049863,120]
[377158123,1754262653352,-460.0,0.00049863,120]
[377158124,1754262653362,-1457.17,0.00049863,120]
[377158125,1754262653372,-460.0,0.00049863,120]
[377158126,1754262653381,-460.82141505,0.00049863,120]
[377158127,1754262653391,-1111.14,0.00049863,120]
[377158128,1754262653400,-460.0,0.00049863,120]
[377158129,1754262653410,-460.0,0.00049863,120]
[377158130,1754262653419,-460.0,0.00049863,120]
[377158131,1754262653428,-460.0,0.00049863,120]
[377158132,1754262653437,-460.0,0.00049863,120]
[377158133,1754262653447,-460.0,0.00049863,120]
[377158134,1754262653456,-460.0,0.00049863,120]
[377158135,1754262653465,-460.0,0.00049863,120]
[377158136,1754262653475,-624.63,0.00049863,120]
[377158137,1754262653484,-460.0,0.00049863,120]
[377158138,1754262653494,-460.0,0.00049863,120]
[377158139,1754262653503,-460.0,0.00049863,120]
[377158140,1754262653512,-571.13,0.00049863,120]
[377158141,1754262653522,-889.75,0.00049863,120]
[377158142,1754262653532,-460.0,0.00049863,120]
[377158143,1754262653541,-1038.86,0.00049863,120]
[377158144,1754262653551,-736.56,0.00049863,120]
[377158145,1754262653561,-460.0,0.00049863,120]
[377158146,1754262653570,-460.0,0.00049863,120]
[377158147,1754262653579,-460.0,0.00049863,120]
[377158148,1754262653589,-378.81522656,0.00049863,120]
[377158149,1754262653601,-2847.99,0.00049863,120]
[377158150,1754262653611,-865.96,0.00049863,120]
[377158151,1754262653621,-843.98,0.00049863,120]
[377158152,1754262653630,-460.0,0.00049863,120]
[377158153,1754262653641,-460.77485515,0.00049863,120]
[377158154,1754262653651,-941.54,0.00049863,120]
[377158155,1754262653660,-460.0,0.00049863,120]
[377158156,1754262653670,-7701.02,0.00049863,120]
[377158157,1754262653680,-1207.31,0.00049863,120]
[377158158,1754262653690,-653.56,0.00049863,120]
[377158159,1754262653699,-452.67279339,0.00049863,120]
[377158160,1754262653709,-460.0,0.00049863,120]
[377158161,1754262653718,-460.0,0.00049863,120]
[377158162,1754262653728,-585.97553961,0.00049863,120]
[377158163,1754262653738,-460.0,0.00049863,120]
[377158164,1754262653748,-460.0,0.00049863,120]
[377158165,1754262653757,-460.0,0.00049863,120]
[377158166,1754262653766,-5734.52,0.00049863,120]
[377158167,1754262653776,-460.0,0.00049863,120]
[377158168,1754262653786,-460.0,0.00049863,120]
[377158169,1754262653796,-460.0,0.00049863,120]
[377158170,1754262653806,-857.58,0.00049863,120]
[377158171,1754262653816,-1789.99,0.00049863,120]
[377158172,1754262653826,-460.0,0.00049863,120]
[377158173,1754262653835,-460.0,0.00049863,120]
[377158174,1754262653845,-991.03,0.00049863,120]
[377158175,1754262653854,-460.0,0.00049863,120]
[377158176,1754262653863,-460.0,0.00049863,120]
[377158177,1754262653873,-460.0,0.00049863,120]
[377158178,1754262653883,-460.0,0.00049863,120]
[377158179,1754262653892,-683.54,0.00049863,120]
[377158180,1754262653901,-460.0,0.00049863,120]
[377158181,1754262653911,-460.0,0.00049863,120]
[377158182,1754262653920,-460.0,0.00049863,120]
[377158183,1754262653930,-460.0,0.00049863,120]
[377158184,1754262653940,-523.69,0.00049863,120]
[377158185,1754262653950,-460.0,0.00049863,120]
[377158186,1754262653959,-460.0,0.00049863,120]
[377158187,1754262653969,-460.0,0.00049863,120]
[377158188,1754262653979,-1494.07,0.00049863,120]
[377158189,1754262653988,-628.71,0.00049863,120]
[377158190,1754262653998,-1809.9,0.00049863,120]
[377158191,1754262654008,-886.71,0.00049863,60]
[377158192,1754262654018,-460.0,0.00049863,120]
[377158193,1754262654027,-460.0,0.00049863,120]
[377158194,1754262654037,-461.43273571,0.00049863,120]
[377158195,1754262654046,-460.0,0.00049863,120]
[377158196,1754262654056,-766.43,0.00049863,120]
[377158197,1754262654066,-460.0,0.00049863,120]
[377158198,1754262654075,-1133.6,0.00049863,120]
[377158199,1754262654085,-460.0,0.00049863,120]
[377158200,1754262654094,-1078.26,0.00049863,120]
[377158201,1754262654104,-760.62,0.00049863,120]
[377158202,1754262654114,-460.0,0.00049863,120]
[377158203,1754262654123,-460.0,0.00049863,120]
[377158204,1754262654133,-460.94173601,0.00049863,120]
[377158205,1754262654143,-1210.46,0.00049863,120]
[377158206,1754262654152,-460.0,0.00049863,120]
[377158207,1754262654162,-460.0,0.00049863,120]
[377158208,1754262654172,-460.0,0.00049863,120]
[377158209,1754262654181,-460.0,0.00049863,120]
[377158210,1754262654191,-1116.4,0.00049863,120]
[377158211,1754262654201,-1191.9,0.00049863,120]
[377158212,1754262654211,-460.0,0.00049863,120]
[377158213,1754262654220,-1734.69,0.00049863,120]
[377158214,1754262654230,-460.0,0.00049863,120]
[377158215,1754262654240,-460.0,0.00049863,120]
[377158216,1754262654249,-596.33,0.00049863,120]
[377158217,1754262654258,-591.10787954,0.00049863,120]
[377158218,1754262654268,-16023.88,0.00049863,120]
[377158219,1754262654277,-460.0,0.00049863,120]
[377158220,1754262654287,-460.0,0.00049863,120]
[377158221,1754262654296,-1152.48,0.00049863,21]
[377158222,1754262654306,-460.0,0.00049863,120]
[377158223,1754262654316,-460.0,0.00049863,120]
[377158224,1754262654326,-1358.52,0.00049863,120]
[377158225,1754262654335,-460.0,0.00049863,120]
[377158226,1754262654345,-15861.99,0.00049863,120]
[377158227,1754262654354,-6227.49,0.00049863,120]
[377158228,1754262654364,-555.24,0.00049863,120]
[377158229,1754262654373,-460.0,0.00049863,120]
[377158230,1754262654382,-1660.66,0.00049863,120]
[377158231,1754262654392,-2212.7,0.00049863,120]
[377158232,1754262654401,-460.0,0.00049863,120]
[377158233,1754262654410,-460.0,0.00049863,120]
[377158234,1754262654420,-460.0,0.00049863,120]
[377158235,1754262654430,-460.0,0.00049863,120]
[377158236,1754262654439,-460.0,0.00049863,120]
[377158237,1754262654449,-1016.02,0.00049863,120]
[377158238,1754262654459,-460.0,0.00049863,120]
[377158239,1754262654468,-460.0,0.00049863,120]
[377158240,1754262654478,-768.82,0.00049863,120]
[377158241,1754262654488,-460.0,0.00049863,120]
[377158242,1754262654498,-818.93,0.00049863,120]
[377158243,1754262654507,-460.0,0.00049863,120]
[377158244,1754262654517,-460.0,0.00049863,120]
[377158245,1754262654527,-460.0,0.00049863,120]
[377158246,1754262654537,-1203.35,0.00049863,120]
[377158247,1754262654547,-4541.26,0.00049863,120]
[377158248,1754262654556,-460.0,0.00049863,120]
[377158249,1754262654566,-460.0,0.00049863,120]
[377158250,1754262654575,-460.0,0.00049863,120]
[377158251,1754262654585,-180.93691028,0.00049863,120]
[377158252,1754262654595,-460.0,0.00049863,120]
[377158253,1754262654604,-465.04314453,0.00049863,120]
[377158254,1754262654614,-460.0,0.00049863,120]
[377158255,1754262654623,-578.24,0.00049863,120]
[377158256,1754262654633,-462.05032921,0.00049863,120]
[377158257,1754262654643,-606.89,0.00049863,120]
[377158258,1754262654652,-460.0,0.00049863,120]
[377158259,1754262654662,-440.22618103,0.00049863,120]
[377158260,1754262654672,-460.0,0.00049863,120]
[377158261,1754262654681,-460.0,0.00049863,120]
[377158262,1754262654691,-509.89,0.00049863,120]
[377158263,1754262654700,-719.21,0.00049863,120]
[377158264,1754262654710,-12428.72,0.00049863,120]
[377158265,1754262654720,-460.0,0.00049863,120]
[377158266,1754262654730,-1118.25,0.00049863,120]
[377158267,1754262654739,-460.0,0.00049863,120]
[377158268,1754262654750,-460.0,0.00049863,120]
[377158269,1754262654760,-460.0,0.00049863,120]
[377158270,1754262654769,-460.0,0.00049863,120]
[377158271,1754262654779,-1713.09,0.00049863,120]
[377158272,1754262654788,-460.0,0.00049863,120]
[377158273,1754262654907,-460.0,0.00049863,120]
[377158274,1754262654918,-460.0,0.00049863,120]
[377158275,1754262654927,-460.0,0.00049863,120]
[377158276,1754262654937,-1394.56,0.00049863,120]
[377158277,1754262654947,-460.0,0.00049863,120]
[377158278,1754262654956,-6980.28,0.00049863,120]
[377158279,1754262654965,-604.36,0.00049863,120]
[377158280,1754262654974,-1713.18,0.00049863,120]
[377158281,1754262654984,-460.0,0.00049863,120]
[377158282,1754262654994,-460.0,0.00049863,120]
[377158283,1754262655003,-614.31,0.00049863,120]
[377158284,1754262655012,-1117.36,0.00049863,120]
[377158285,1754262655021,-460.0,0.00049863,120]
[377158286,1754262655031,-630.13,0.00049863,120]
[377158287,1754262655041,-460.0,0.00049863,120]
[377158288,1754262655051,-373.91148473,0.00049866,61]
[377158289,1754262655061,-150.27131678,0.00049873,10]
[377158290,1754262655070,-500.0,0.00049873,10]
[377158291,1754262655081,-12649.34751639,0.00049873,10]
[377158292,1754262655091,-13415.6214327,0.000499,2]
[377158293,1754262655101,-245.79341206,0.00049921,7]
[377158294,1754262655111,-1000.0,0.00049921,10]
[377158295,1754262655121,-266.29760607,0.00049921,10]
[377158296,1754262655131,-9787.51,0.00049989,120]
[377158297,1754262655141,-1000.0,0.0005,120]
[377158298,1754262655151,-352.57967547,0.00050058,10]
[377158299,1754262655160,-1000.0,0.00050121,10]
[377158300,1754262655170,-1000.0,0.00050121,10]
[377158301,1754262655180,-1000.0,0.00050121,10]
[377158302,1754262655190,-1000.0,0.00050121,10]
[377158303,1754262655200,-1003.34196874,0.00050121,10]
[377158304,1754262655210,-1000.0,0.00050121,10]
[377158305,1754262655220,-460.0,0.00050136,120]
[377158306,1754262655230,-460.0,0.00050136,120]
[377158307,1754262655239,-460.0,0.00050136,120]
[377158308,1754262655249,-460.0,0.00050136,120]
[377158309,1754262655259,-460.0,0.00050136,120]
[377158310,1754262655269,-460.0,0.00050136,120]
[377158311,1754262655278,-574.89,0.00050136,30]
[377158312,1754262655288,-481.41,0.00050136,120]
[377158313,1754262655297,-460.0,0.00050136,120]
[377158314,1754262655307,-460.0,0.00050136,120]
[377158315,1754262655317,-460.0,0.00050136,120]
[377158316,1754262655326,-460.0,0.00050136,120]
[377158317,1754262655335,-460.0,0.00050136,120]
[377158318,1754262655345,-460.0,0.00050136,120]
[377158319,1754262655355,-460.0,0.00050136,120]
[377158320,1754262655365,-460.0,0.00050136,120]
[377158321,1754262655376,-466.11265033,0.00050136,120]
[377158322,1754262655388,-1013.03,0.00050136,120]
[377158323,1754262655399,-467.80357057,0.00050136,120]
[377158324,1754262655410,-460.0,0.00050136,120]
[377158325,1754262655421,-460.0,0.00050136,120]
[377158326,1754262655432,-460.0,0.00050136,120]
[377158327,1754262655442,-460.0,0.00050136,120]
[377158328,1754262655452,-460.0,0.00050136,120]
[377158329,1754262655462,-460.0,0.00050136,120]
[377158330,1754262655472,-460.0,0.00050136,120]
[377158331,1754262655482,-670.49,0.00050136,120]
[377158332,1754262655492,-460.0,0.00050136,120]
[377158333,1754262655502,-826.62,0.00050136,120]
[377158334,1754262655512,-460.0,0.00050136,120]
[377158335,1754262655522,-460.0,0.00050136,120]
[377158336,1754262655533,-460.0,0.00050136,120]
[377158337,1754262655543,-460.0,0.00050136,120]
[377158338,1754262655553,-460.0,0.00050136,120]
[377158339,1754262655564,-460.0,0.00050136,120]
[377158340,1754262655574,-460.0,0.00050136,120]
[377158341,1754262655585,-460.0,0.00050136,120]
[377158342,1754262655599,-498.36,0.00050136,120]
[377158343,1754262655609,-460.0,0.00050136,120]
[377158344,1754262655618,-460.0,0.00050136,120]
[377158345,1754262655628,-460.0,0.00050136,120]
[377158346,1754262655639,-460.0,0.00050136,120]
[377158347,1754262655649,-460.0,0.00050136,120]
[377158348,1754262655659,-460.0,0.00050136,120]
[377158349,1754262655670,-460.0,0.00050136,120]
[377158350,1754262655681,-637.52,0.00050136,120]
[377158351,1754262655691,-460.0,0.00050136,120]
[377158352,1754262655700,-460.0,0.00050136,120]
[377158353,1754262655710,-460.0,0.00050136,120]
[377158354,1754262655719,-460.0,0.00050136,120]
[377158355,1754262655729,-460.0,0.00050136,120]
[377158356,1754262655738,-683.19,0.00050136,120]
[377158357,1754262655748,-460.0,0.00050136,120]
[377158358,1754262655757,-460.0,0.00050136,120]
[377158359,1754262655767,-460.0,0.00050136,120]
[377158360,1754262655776,-460.0,0.00050136,120]
[377158361,1754262655787,-460.0,0.00050136,120]
[377158362,1754262655797,-460.0,0.00050136,120]
[377158363,1754262655806,-200.63505158,0.00050136,120]
[377158364,1754262655816,-573.48,0.00050136,120]
[377158365,1754262655826,-460.0,0.00050136,120]
[377158366,1754262655836,-689.19,0.00050136,120]
[377158367,1754262655845,-460.0,0.00050136,120]
[377158368,1754262655854,-460.0,0.00050136,20]
[377158369,1754262655864,-460.0,0.00050136,120]
[377158370,1754262655873,-182.90078393,0.00050136,120]
[377158371,1754262655883,-460.0,0.00050136,120]
[377158372,1754262655892,-460.0,0.00050136,120]
[377158373,1754262655902,-460.0,0.00050136,120]
[377158374,1754262655911,-460.0,0.00050136,120]
[377158375,1754262655920,-460.0,0.00050136,120]
[377158376,1754262655930,-528.82,0.00050136,120]
[377158377,1754262655940,-460.0,0.00050136,120]
[377158378,1754262655949,-460.0,0.00050136,120]
[377158379,1754262655958,-460.0,0.00050136,120]
[377158380,1754262655967,-460.0,0.00050136,120]
[377158381,1754262655977,-460.0,0.00050136,120]
[377158382,1754262655986,-460.0,0.00050136,120]
[377158383,1754262655996,-460.0,0.00050136,120]
[377158384,1754262656005,-722.18,0.00050136,120]
[377158385,1754262656015,-151.0,0.00050136,120]
[377158386,1754262656025,-244.9936,0.00050136,120]
[377158387,1754262656035,-460.0,0.00050136,120]
[377158388,1754262656044,-460.0,0.00050136,120]
[377158389,1754262656054,-460.0,0.00050136,120]
[377158390,1754262656063,-187.35344696,0.00050136,120]
[377158391,1754262656072,-507.50700016,0.00050136,60]
[377158392,1754262656082,-460.0,0.00050136,120]
[377158393,1754262656092,-460.0,0.00050136,120]
[377158394,1754262656101,-460.0,0.00050136,7]
[377158395,1754262656111,-460.0,0.00050136,120]
[377158396,1754262656120,-463.14,0.00050136,120]
[377158397,1754262656130,-460.0,0.00050136,120]
[377158398,1754262656139,-300.0,0.00050136,4]
[377158399,1754262656149,-460.0,0.00050136,120]
[377158400,1754262656158,-460.0,0.00050136,120]
[377158401,1754262656168,-460.0,0.00050136,120]
[377158402,1754262656177,-460.0,0.00050136,120]
[377158403,1754262656187,-399.18756882,0.00050136,120]
[377158404,1754262656196,-460.0,0.00050136,120]
[377158405,1754262656205,-460.0,0.00050136,120]
[377158406,1754262656215,-460.0,0.00050136,120]
[377158407,1754262656224,-153.50456609,0.00050136,120]
[377158408,1754262656234,-460.0,0.00050136,120]
[377158409,1754262656243,-460.0,0.00050136,120]
[377158410,1754262656253,-814.14,0.00050136,120]
[377158411,1754262656263,-465.88646854,0.00050136,120]
[377158412,1754262656272,-460.0,0.00050136,120]
[377158413,1754262656282,-460.0,0.00050136,120]
[377158414,1754262656291,-460.0,0.00050136,120]
[377158415,1754262656301,-460.0,0.00050136,120]
[377158416,1754262656310,-165.67705347,0.00050136,120]
[377158417,1754262656320,-460.0,0.00050136,120]
[377158418,1754262656329,-523.18,0.00050136,120]
[377158419,1754262656339,-533.8457594,0.00050136,120]
[377158420,1754262656348,-460.0,0.00050136,120]
[377158421,1754262656358,-320.0147226,0.00050136,120]
[377158422,1754262656367,-460.0,0.00050136,120]
[377158423,1754262656376,-460.0,0.00050136,120]
[377158424,1754262656386,-460.0,0.00050136,120]
[377158425,1754262656395,-460.0,0.00050136,120]
[377158426,1754262656404,-460.0,0.00050136,7]
[377158427,1754262656414,-460.0,0.00050136,120]
[377158428,1754262656424,-375.88339046,0.00050136,120]
[377158429,1754262656433,-475.74693843,0.00050136,120]
[377158430,1754262656443,-460.0,0.00050136,120]
[377158431,1754262656452,-460.0,0.00050136,120]
[377158432,1754262656462,-460.0,0.00050136,120]
[377158433,1754262656472,-460.0,0.00050136,120]
[377158434,1754262656481,-1010.7,0.00050136,120]
[377158435,1754262656491,-460.0,0.00050136,120]
[377158436,1754262656500,-460.0,0.00050136,120]
[377158437,1754262656509,-623.39,0.00050136,120]
[377158438,1754262656518,-460.0,0.00050136,3]
[377158439,1754262656528,-460.0,0.00050136,120]
[377158440,1754262656538,-1000.0,0.00050136,120]
[377158441,1754262656548,-588.6305419,0.00050136,120]
[377158442,1754262656558,-266.49327071,0.00050136,120]
[377158443,1754262656567,-460.0,0.00050136,120]
[377158444,1754262656576,-460.0,0.00050136,120]
[377158445,1754262656586,-460.0,0.00050136,120]
[377158446,1754262656599,-460.0,0.00050136,120]
[377158447,1754262656609,-460.0,0.00050136,120]
[377158448,1754262656618,-822.32,0.00050136,120]
[377158449,1754262656627,-460.0,0.00050136,120]
[377158450,1754262656643,-460.0,0.00050136,120]
[377158451,1754262656653,-658.11,0.00050136,120]
[377158452,1754262656662,-460.0,0.00050136,120]
[377158453,1754262656672,-460.0,0.00050136,120]
[377158454,1754262656681,-318.52988683,0.00050136,120]
[377158455,1754262656691,-460.0,0.00050136,120]
[377158456,1754262656700,-460.0,0.00050136,120]
[377158457,1754262656709,-460.0,0.00050136,120]
[377158458,1754262656719,-460.0,0.00050136,120]
[377158459,1754262656728,-460.0,0.00050136,120]
[377158460,1754262656737,-460.0,0.00050136,120]
[377158461,1754262656747,-460.0,0.00050136,120]
[377158462,1754262656756,-460.0,0.00050136,120]
[377158463,1754262656766,-460.0,0.00050136,120]
[377158464,1754262656776,-460.0,0.00050136,120]
[377158465,1754262656786,-460.0,0.00050136,120]
[377158466,1754262656795,-265.73440307,0.00050136,120]
[377158467,1754262656805,-500.0,0.00050136,14]
[377158468,1754262656815,-262.10867834,0.00050136,120]
[377158469,1754262656824,-1151.56,0.00050136,30]
[377158470,1754262656833,-460.0,0.00050136,120]
[377158471,1754262656843,-460.0,0.00050136,120]
[377158472,1754262656853,-460.0,0.00050136,120]
[377158473,1754262656864,-460.0,0.00050136,120]
[377158474,1754262656873,-466.51070077,0.00050136,120]
[377158475,1754262656883,-917.11,0.00050136,120]
[377158476,1754262656892,-460.0,0.00050136,120]
[377158477,1754262656902,-460.0,0.00050136,120]
[377158478,1754262656912,-460.0,0.00050136,120]
[377158479,1754262656921,-460.0,0.00050136,120]
[377158480,1754262657035,-460.0,0.00050136,120]
[377158481,1754262657045,-460.0,0.00050136,120]
[377158482,1754262657056,-460.0,0.00050136,120]
[377158483,1754262657065,-460.0,0.00050136,120]
[377158484,1754262657075,-460.0,0.00050136,120]
[377158485,1754262657084,-540.25271751,0.00050136,120]
[377158486,1754262657094,-617.82,0.00050136,120]
[377158487,1754262657105,-460.0,0.00050136,120]
[377158488,1754262657115,-529.64,0.00050136,120]
[377158489,1754262657124,-460.0,0.00050136,120]
[377158490,1754262657134,-460.0,0.00050136,120]
[377158491,1754262657143,-420.17718731,0.00050136,120]
[377158492,1754262657152,-505.04526455,0.00050136,120]
[377158493,1754262657162,-460.0,0.00050136,120]
[377158494,1754262657171,-460.0,0.00050136,120]
[377158495,1754262657181,-460.0,0.00050136,120]
[377158496,1754262657190,-2429.25,0.00050136,120]
[377158497,1754262657200,-460.0,0.00050136,120]
[377158498,1754262657209,-638.56,0.00050136,120]
[377158499,1754262657219,-460.0,0.00050136,120]
[377158500,1754262657228,-460.0,0.00050136,120]
[377158501,1754262657239,-375.00558679,0.00050136,120]
[377158502,1754262657263,-84.99441321,0.00050136,120]
[377158503,1754262657273,-460.0,0.00050136,120]
[377158504,1754262657282,-614.58,0.00050136,120]
[377158505,1754262657291,-605.96,0.00050136,120]
[377158506,1754262657301,-460.0,0.00050136,120]
[377158507,1754262657310,-460.0,0.00050136,120]
[377158508,1754262657320,-515.39,0.00050136,120]
[377158509,1754262657330,-511.64,0.00050136,120]
[377158510,1754262657339,-460.0,0.00050136,120]
[377158511,1754262657349,-2536.87,0.00050136,120]
[377158512,1754262657358,-572.77,0.00050136,120]
[377158513,1754262657368,-460.0,0.00050136,120]
[377158514,1754262657377,-703.39,0.00050136,120]
[377158515,1754262657386,-460.0,0.00050136,120]
[377158516,1754262657396,-460.0,0.00050136,120]
[377158517,1754262657405,-460.0,0.00050136,120]
[377158518,1754262657415,-629.7,0.00050136,120]
[377158519,1754262657424,-460.0,0.00050136,120]
[377158520,1754262657434,-460.0,0.00050136,120]
[377158521,1754262657443,-557.62,0.00050136,120]
[377158522,1754262657453,-460.0,0.00050136,120]
[377158523,1754262657463,-460.0,0.00050136,120]
[377158524,1754262657473,-1338.79,0.00050136,120]
[377158525,1754262657482,-62.50518272,0.00050136,120]
[377158526,1754262657761,-460.0,0.00049863,120]
[377158527,1754262657771,-397.49481728,0.00050136,120]
[377158528,1754262657781,-454.65855995,0.00050136,120]
[377158529,1754262657795,-5.34144005,0.00050136,120]
[377158530,1754262657804,-606.26,0.00050136,120]
[377158531,1754262657814,-225.01091811,0.00050136,120]
[377158532,1754262657824,-460.0,0.00050136,120]
[377158533,1754262657833,-460.0,0.00050136,120]
[377158534,1754262657842,-380.9950265,0.00050136,120]
[377158535,1754262657854,-79.0049735,0.00050136,120]
[377158536,1754262657864,-460.0,0.00050136,120]
[377158537,1754262657873,-1457.17,0.00050136,120]
[377158538,1754262657883,-209.52352531,0.00050136,120]
[377158539,1754262658308,-451.35119293,0.00049294,120]
[377158540,1754262658318,-500.0,0.00049294,2]
[377158541,1754262658328,-350.74511846,0.00049294,2]
[377158542,1754262658337,-901.61647469,0.00050136,120]
[377158543,1754262658346,-460.0,0.00050136,120]
[377158544,1754262658356,-460.0,0.00050136,120]
[377158545,1754262658366,-460.0,0.00050136,120]
[377158546,1754262658375,-460.0,0.00050136,120]
[377158547,1754262658385,-460.0,0.00050136,120]
[377158548,1754262658394,-460.0,0.00050136,120]
[377158549,1754262658404,-624.63,0.00050136,120]
[377158550,1754262658414,-460.0,0.00050136,120]
[377158551,1754262658424,-240.68617602,0.00050136,120]
[377158552,1754262658433,-460.0,0.00050136,120]
[377158553,1754262658443,-571.13,0.00050136,120]
[377158554,1754262658453,-889.75,0.00050136,120]
[377158555,1754262658462,-460.0,0.00050136,120]